bitfinex-derivatives/quotes_SOLF0:USTF0_20250318
["timestamp","ask_amount","ask_price","bid_price","bid_amount"]
[1742276118461,0.06058568,124.17,124.16,12.15098862]
[1742276118760,8.11468568,124.17,124.16,12.15098862]
[1742276119357,8.0547,124.16,124.15,0.05965158]
[1742276121661,0.06058568,124.17,124.15,0.05965158]
[1742276122761,8.11498568,124.17,124.15,0.05965158]
[1742276123561,8.0547,124.16,124.15,0.05965158]
[1742276124859,36.7347,124.16,124.15,0.05965158]
[1742276132667,36.7347,124.16,124.1,290.19098862]
[1742276132668,40.83098862,124.16,124.1,290.19098862]
[1742276132869,12.15098862,124.15,124.1,278.04]
[1742276133059,28.68,124.14,124.1,278.04]
[1742276133259,28.68,124.14,124.09,12.15098862]
[1742276133458,40.83098862,124.14,124.09,12.15098862]
[1742276133859,8.0583,124.11,124.1,0.05307813]
[1742276134773,20.20928862,124.11,124.1,0.05307813]
[1742276138370,38.8524,124.12,124.1,0.05307813]
[1742276138571,36.7175,124.12,124.1,0.05307813]
[1742276139673,8.0575,124.12,124.1,0.05307813]
[1742276139868,36.7375,124.12,124.1,0.05307813]
[1742276140979,28.68,124.12,124.1,0.05307813]
[1742276141171,8.11337053,124.13,124.1,20.26266675]
[1742276141477,36.79337053,124.13,124.1,20.26266675]
[1742276142477,8.0574,124.12,124.1,12.20406675]
[1742276145684,8.058,124.11,124.1,12.20406675]
[1742276146884,8.058,124.11,124.1,0.05307813]
[1742276147385,36.738,124.11,124.1,0.05307813]
[1742276154992,28.68,124.11,124.1,0.05307813]
[1742276156093,36.738,124.11,124.1,0.05307813]
[1742276159600,28.68,124.11,124.1,0.05307813]
[1742276160495,36.738,124.11,124.1,0.05307813]
[1742276162196,8.058,124.11,124.1,0.05307813]
[1742276163197,0.05637053,124.13,124.1,0.05307813]
[1742276163198,0.05637053,124.13,124.11,8.058]
[1742276163402,0.05637053,124.13,124.11,12.15098862]
[1742276164305,28.68,124.12,124.1,0.05307813]
[1742276165004,8.058,124.11,124.1,0.05307813]
[1742276181420,28.68,124.12,124.1,0.05307813]
[1742276182017,8.058,124.11,124.1,0.05307813]
[1742276183418,36.718,124.11,124.1,0.05307813]
[1742276185429,36.718,124.11,124.1,7.813e-05]
[1742276185923,38.7897,124.11,124.1,7.813e-05]
[1742276186625,46.8497,124.11,124.01,12.15098862]
[1742276186825,12.15098862,124.06,124.01,12.15098862]
[1742276187124,28.66,124.05,124.01,12.15098862]
[1742276187723,0.05928335,124.04,124.02,0.05752031]
[1742276188025,28.66,124.03,124.02,0.05752031]
[1742276193226,28.66,124.03,124.02,8.12132031]
[1742276193633,0.05928335,124.04,124.02,0.05752031]
[1742276193833,0.05928335,124.04,124.03,12.15098862]
[1742276194930,0.05928335,124.04,124.03,20.21418862]
[1742276197233,28.68,124.08,124.07,8.0604]
[1742276198728,28.68,124.08,124.06,12.21162828]
[1742276198933,28.68,124.08,124.06,0.06063966]
[1742276199139,40.83098862,124.08,124.06,0.06063966]
[1742276199337,8.0606,124.07,124.06,0.06063966]
[1742276202138,20.21158862,124.07,124.06,0.06063966]
[1742276205540,20.21158862,124.07,124.06,3.966e-05]
[1742276212249,8.0645,124.01,124.0,2.1845]
[1742276215156,28.74076548,124.02,124.0,2.1845]
[1742276216052,28.74076548,124.02,124.0,10.2492]
[1742276216252,28.74076548,124.02,124.0,2.1845]
[1742276217953,28.74076548,124.02,124.01,8.0645]
[1742276219960,0.06076548,124.02,124.01,8.0645]
[1742276220255,0.06076548,124.02,124.01,20.21548862]
[1742276221663,0.06076548,124.02,124.01,12.15098862]
[1742276221859,0.06076548,124.02,124.0,10.2493]
[1742276222663,0.06076548,124.02,124.01,8.0645]
[1742276223161,0.06076548,124.02,124.0,10.2493]
[1742276224261,0.06076548,124.02,124.01,8.0645]
[1742276224662,12.15098862,124.05,124.01,8.0645]
[1742276224663,28.68,124.05,124.03,8.0629]
[1742276225263,28.68,124.05,124.01,12.15098862]
[1742276225662,12.15098862,124.08,124.01,12.15098862]
[1742276225853,0.05662655,124.04,124.02,0.06006827]
[1742276226055,0.05662655,124.04,124.03,12.15098862]
[1742276226457,28.68,124.06,124.03,12.15098862]
[1742276227061,28.68,124.06,124.05,8.0619]
[1742276227562,0.05449513,124.07,124.06,8.0609]
[1742276227868,0.05449513,124.07,124.05,12.15098862]
[1742276228167,0.05449513,124.07,124.05,0.05377809]
[1742276228565,8.0612,124.06,124.05,0.05377809]
[1742276229171,36.77539513,124.07,124.05,0.05377809]
[1742276230162,8.11539513,124.07,124.05,0.05377809]
[1742276230668,0.05449513,124.07,124.05,12.20476671]
[1742276231567,0.05449513,124.07,124.06,8.0612]
[1742276231769,44.70515148,124.09,124.05,14.24676671]
[1742276231969,44.70515148,124.09,124.07,12.15098862]
[1742276232166,28.66,124.1,124.08,8.0599]
[1742276232774,28.66,124.1,124.07,12.15098862]
[1742276232971,0.05625929,124.1,124.08,0.05615512]
[1742276233472,0.05625929,124.1,124.09,8.0589]
[1742276234870,56.8561401,124.14,124.11,8.0578]
[1742276235170,28.66,124.12,124.11,8.0578]
[1742276235561,28.66,124.12,124.1,20.20928862]
[1742276236169,28.66,124.12,124.1,20.26106139]
[1742276236170,28.71614852,124.12,124.1,20.26106139]
[1742276237378,0.05614852,124.12,124.1,20.26106139]
[1742276238475,8.11344852,124.12,124.1,12.20276139]
[1742276238675,8.11344852,124.12,124.1,0.05177277]
[1742276239774,8.058,124.11,124.1,0.05177277]
[1742276240172,0.05614852,124.12,124.1,8.11027277]
[1742276241173,8.11354852,124.12,124.1,0.05177277]
[1742276242581,8.058,124.11,124.1,0.05177277]
[1742276242879,0.05614852,124.12,124.1,0.05177277]
[1742276243380,8.11384852,124.12,124.1,0.05177277]
[1742276243782,0.05614852,124.12,124.1,0.05177277]
[1742276244884,8.11384852,124.12,124.1,0.05177277]
[1742276247378,0.05614852,124.12,124.1,8.11037277]
[1742276247972,0.05614852,124.12,124.11,8.058]
[1742276249485,0.05614852,124.12,124.1,8.11007277]
[1742276249785,8.11344852,124.12,124.1,8.11007277]
[1742276249979,0.05614852,124.12,124.1,0.05177277]
[1742276250181,8.058,124.11,124.1,0.05177277]
[1742276251179,36.75384852,124.12,124.1,0.05177277]
[1742276251380,28.69614852,124.12,124.1,0.05177277]
[1742276251884,8.058,124.11,124.1,0.05177277]
[1742276252085,28.69614852,124.12,124.1,0.05177277]
[1742276253583,0.05614852,124.12,124.1,0.05177277]
[1742276253985,0.05614852,124.12,124.11,8.058]
[1742276256584,0.05614852,124.12,124.1,0.05177277]
[1742276256789,28.69614852,124.12,124.1,0.05177277]
[1742276256988,36.75374852,124.12,124.1,0.05177277]
[1742276257186,28.69614852,124.12,124.1,0.05177277]
[1742276257786,8.058,124.11,124.1,0.05177277]
[1742276260488,36.75384852,124.12,124.1,0.05177277]
[1742276260784,0.05614852,124.12,124.1,12.20276139]
[1742276260990,0.05614852,124.12,124.1,40.84276139]
[1742276261491,0.05614852,124.12,124.11,8.058]
[1742276262088,0.05614852,124.12,124.11,20.20898862]
[1742276263285,8.0544,124.17,124.11,12.15098862]
[1742276263495,28.64,124.16,124.13,12.15098862]
[1742276264188,28.64,124.16,124.15,8.0554]
[1742276264789,28.64,124.16,124.14,8.11627838]
[1742276265591,28.64,124.16,124.14,0.06027838]
[1742276267695,36.6948,124.16,124.14,0.06027838]
[1742276267885,8.0548,124.16,124.14,0.06027838]
[1742276268496,36.6948,124.16,124.14,0.06027838]
[1742276270392,8.11137754,124.17,124.14,20.267267]
[1742276270595,8.11137754,124.17,124.15,12.15098862]
[1742276270993,0.05707754,124.17,124.16,12.15098862]
[1742276271595,0.05707754,124.17,124.16,20.20568862]
[1742276273498,0.05707754,124.17,124.16,12.15098862]
[1742276273795,8.055,124.16,124.15,12.15098862]
[1742276274197,0.05707754,124.17,124.14,12.211267]
[1742276274402,8.0554,124.15,124.14,0.06027838]
[1742276276095,0.05707754,124.17,124.14,12.211267]
[1742276276298,0.05707754,124.17,124.15,12.15098862]
[1742276276504,8.11157754,124.17,124.15,12.15098862]
[1742276277103,8.0547,124.16,124.15,12.15098862]
[1742276277901,8.11147754,124.17,124.15,12.15098862]
[1742276279209,8.11147754,124.17,124.15,20.20628862]
[1742276279500,0.05707754,124.17,124.16,12.15098862]
[1742276279701,0.05707754,124.17,124.16,20.20568862]
[1742276281311,28.62,124.21,124.16,40.77098862]
[1742276281601,28.62,124.21,124.18,12.15098862]
[1742276281995,8.0524,124.2,124.18,12.15098862]
[1742276282296,28.62,124.21,124.18,12.15098862]
[1742276282495,28.62,124.21,124.18,12.20809012]
[1742276282704,28.62,124.21,124.18,0.0571015]
[1742276283108,8.0521,124.2,124.18,0.0571015]
[1742276283811,36.6717,124.21,124.18,12.20809012]
[1742276284204,28.62,124.21,124.18,12.20809012]
[1742276284403,8.0521,124.2,124.18,12.20809012]
[1742276285614,28.62,124.21,124.18,20.26149012]
[1742276286208,12.15098862,124.24,124.19,12.15098862]
[1742276286513,28.62,124.23,124.2,12.15098862]
[1742276286713,36.6705,124.23,124.2,20.20278862]
[1742276286910,14.18208862,124.25,124.2,12.20717369]
[1742276287112,28.62,124.24,124.21,12.15098862]
[1742276287308,36.6692,124.25,124.22,8.0505]
[1742276287910,36.6692,124.25,124.22,20.20148862]
[1742276288110,28.62,124.25,124.23,8.0501]
[1742276288311,36.6685,124.26,124.23,8.0501]
[1742276288604,36.6685,124.26,124.22,12.15098862]
[1742276288817,8.0491,124.25,124.22,20.20148862]
[1742276289216,8.0491,124.25,124.22,12.15098862]
[1742276289408,8.0486,124.26,124.22,12.15098862]
[1742276289711,8.0486,124.26,124.23,12.15098862]
[1742276289915,14.34218862,124.28,124.23,12.15098862]
[1742276290115,28.62,124.27,124.23,12.15098862]
[1742276290309,28.62,124.27,124.24,0.06162587]
[1742276290809,8.0489,124.25,124.24,0.06162587]
[1742276293113,134.11545447,124.35,124.24,12.21261449]
[1742276293312,28.62,124.32,124.28,12.15098862]
[1742276294117,28.62,124.31,124.29,12.15098862]
[1742276294510,28.62,124.31,124.29,20.25774161]
[1742276294712,28.62,124.31,124.29,12.21154161]
[1742276295917,28.62,124.31,124.29,20.25774161]
[1742276296113,11.17628787,124.33,124.29,12.21154161]
[1742276296313,39.77628787,124.33,124.3,12.15098862]
[1742276296819,11.17628787,124.33,124.3,20.19628862]
[1742276297017,39.77628787,124.33,124.3,12.15098862]
[1742276297213,39.77628787,124.33,124.31,12.15098862]
[1742276297415,39.77628787,124.33,124.32,8.0444]
[1742276297616,18.51138862,124.37,124.32,12.15098862]
[1742276297813,44.70515148,124.4,124.36,8.0414]
[1742276298014,28.6,124.39,124.35,12.15098862]
[1742276298413,28.6,124.39,124.36,20.24675393]
[1742276298826,28.6,124.39,124.36,0.05446531]
[1742276299318,48.79138862,124.39,124.36,0.05446531]
[1742276300119,44.70515148,124.4,124.36,0.05446531]
[1742276300313,28.6,124.39,124.36,0.05446531]
[1742276300514,28.6,124.39,124.36,12.20545393]
[1742276301219,28.6,124.39,124.36,0.05446531]
[1742276301814,8.0411,124.37,124.36,0.05446531]
[1742276302019,36.6411,124.37,124.36,0.05446531]
[1742276302721,28.6,124.37,124.36,0.05446531]
[1742276303519,36.6411,124.37,124.36,0.05446531]
[1742276304022,28.6,124.37,124.36,0.05446531]
[1742276304820,36.6411,124.37,124.36,0.05446531]
[1742276315321,8.0411,124.37,124.36,0.05446531]
[1742276315528,36.6211,124.37,124.36,0.05446531]
[1742276316630,8.0411,124.37,124.36,0.05446531]
[1742276316831,36.6211,124.37,124.36,0.05446531]
[1742276318536,8.0408,124.38,124.36,0.05446531]
[1742276318733,2.0662,124.41,124.36,0.05446531]
[1742276319033,8.0403,124.39,124.36,8.09616531]
[1742276319234,28.58,124.39,124.36,0.05446531]
[1742276320330,2.0662,124.41,124.36,0.05446531]
[1742276320530,28.58,124.4,124.36,8.09576531]
[1742276320730,28.58,124.39,124.36,8.09576531]
[1742276320932,36.6199,124.39,124.36,8.09576531]
[1742276321230,28.58,124.39,124.37,20.10443884]
[1742276321532,28.58,124.39,124.38,12.06373884]
[1742276321832,28.58,124.41,124.38,20.10383884]
[1742276322023,28.58,124.41,124.39,12.06373884]
[1742276322424,28.58,124.41,124.39,12.12261781]
[1742276322931,28.58,124.41,124.39,20.16241781]
[1742276323129,28.58,124.41,124.39,12.12261781]
[1742276323429,8.0385,124.42,124.39,12.12261781]
[1742276323635,28.58,124.41,124.39,12.12261781]
[1742276324032,8.0377,124.43,124.39,20.16201781]
[1742276324336,14.15783884,124.44,124.42,12.06373884]
[1742276324337,28.58,124.44,124.42,12.06373884]
[1742276324538,8.0372,124.43,124.41,12.06373884]
[1742276324836,8.0372,124.43,124.4,12.11972516]
[1742276325035,28.58,124.42,124.4,12.11972516]
[1742276325229,36.6182,124.42,124.4,12.11972516]
[1742276325830,28.58,124.42,124.4,12.11972516]
[1742276326536,36.6182,124.42,124.4,12.11972516]
[1742276328639,8.0385,124.41,124.4,12.11972516]
[1742276328829,28.58,124.42,124.4,12.11972516]
[1742276329032,36.6184,124.42,124.4,12.11972516]
[1742276329834,8.0385,124.41,124.4,12.11972516]
[1742276331236,8.0385,124.41,124.4,0.05598632]
[1742276332734,8.0414,124.37,124.32,277.38]
[1742276332938,28.56,124.37,124.34,12.06373884]
[1742276333540,8.0421,124.36,124.34,12.06373884]
[1742276333945,8.10310982,124.36,124.34,12.12524129]
[1742276334136,8.10310982,124.36,124.35,12.06373884]
[1742276334334,0.06100982,124.36,124.35,12.06373884]
[1742276337045,0.06100982,124.36,124.35,20.10613884]
[1742276337832,28.56,124.4,124.38,12.06373884]
[1742276339142,28.56,124.4,124.38,12.12335753]
[1742276339344,28.56,124.4,124.38,20.16375753]
[1742276339738,28.56,124.4,124.39,12.06373884]
[1742276340242,28.56,124.4,124.39,20.10353884]
[1742276340744,28.56,124.4,124.38,12.12335753]
[1742276341745,28.56,124.4,124.38,20.16345753]
[1742276342942,28.56,124.4,124.39,8.0398]
[1742276344742,14.25973884,124.45,124.41,8.0381]
[1742276344743,8.0369,124.44,124.41,8.0381]
[1742276345044,28.56,124.43,124.41,8.0381]
[1742276345245,28.56,124.43,124.41,0.05487397]
[1742276346044,8.0369,124.44,124.41,0.05487397]
[1742276346244,11.01605151,124.46,124.43,12.06373884]
[1742276346540,28.56,124.45,124.43,12.06373884]
[1742276346745,28.56,124.44,124.43,12.06373884]
[1742276347436,28.56,124.44,124.43,20.10033884]
[1742276348046,28.56,124.44,124.41,12.11861281]
[1742276348246,28.56,124.44,124.41,0.05487397]
[1742276348545,36.5969,124.44,124.41,0.05487397]
[1742276349547,28.56,124.44,124.41,0.05487397]
[1742276349747,28.56,124.44,124.41,12.11861281]
[1742276350248,36.5967,124.44,124.41,12.11861281]
[1742276351848,8.0373,124.43,124.41,0.05487397]
[1742276352044,28.56,124.42,124.41,0.05487397]
[1742276352548,36.5979,124.42,124.41,0.05487397]
[1742276352750,28.56,124.42,124.41,0.05487397]
[1742276354049,36.5979,124.42,124.41,0.05487397]
[1742276356252,28.56,124.42,124.41,0.05487397]
[1742276357952,36.5979,124.42,124.41,0.05487397]
[1742276359154,28.56,124.42,124.41,0.05487397]
[1742276361658,28.56,124.42,124.41,8.09337397]
[1742276362154,8.0362,124.45,124.41,0.05487397]
[1742276362355,28.56,124.45,124.43,12.06373884]
[1742276363051,28.56,124.45,124.43,20.10053884]
[1742276363254,28.56,124.45,124.41,0.05487397]
[1742276363455,8.0379,124.42,124.41,0.05487397]
[1742276363655,36.5979,124.42,124.41,0.05487397]
[1742276366261,28.56,124.42,124.41,0.05487397]
[1742276367867,36.5975,124.43,124.41,0.05487397]
[1742276368069,36.5975,124.43,124.42,12.06373884]
[1742276368367,28.56,124.43,124.42,12.06373884]
[1742276369968,28.56,124.43,124.41,0.05487397]
[1742276370468,8.0379,124.42,124.41,0.05487397]
[1742276372568,8.0406,124.38,124.36,8.0416]
[1742276372774,36.6006,124.38,124.36,8.0416]
[1742276373175,28.56,124.38,124.36,8.0416]
[1742276373574,28.56,124.38,124.37,12.06373884]
[1742276373975,28.61106041,124.38,124.37,20.10483884]
[1742276375280,0.05106041,124.38,124.37,20.10483884]
[1742276378680,8.0382,124.42,124.39,8.0398]
[1742276378874,36.5982,124.42,124.39,20.10353884]
[1742276379674,8.0382,124.42,124.39,20.10353884]
[1742276379980,8.0375,124.43,124.41,12.06373884]
[1742276380374,8.0375,124.43,124.41,12.11555278]
[1742276380779,8.0379,124.42,124.41,12.11555278]
[1742276381477,8.0376,124.43,124.41,12.11555278]
[1742276381778,28.56,124.44,124.41,20.15405278]
[1742276381974,36.5969,124.44,124.41,20.15405278]
[1742276382472,36.5969,124.44,124.42,8.0378]
[1742276382875,36.5969,124.44,124.41,12.11555278]
[1742276383179,8.0373,124.43,124.41,20.15375278]
[1742276383879,8.0373,124.43,124.41,12.11555278]
[1742276384476,8.0373,124.43,124.41,20.15405278]
[1742276384676,28.56,124.44,124.41,12.11555278]
[1742276385182,28.56,124.43,124.41,12.11555278]
[1742276385382,28.56,124.43,124.41,0.05181394]
[1742276386074,8.0379,124.42,124.41,0.05181394]
[1742276396986,335.28863617,124.55,124.41,30.09181394]
[1742276397287,335.28863617,124.55,124.52,12.06373884]
[1742276397688,341.72043617,124.54,124.52,12.11973801]
[1742276399081,341.72043617,124.54,124.52,0.05599917]
[1742276399683,30.44,124.53,124.52,0.05599917]
[1742276401686,38.4708,124.53,124.52,0.05599917]
[1742276401887,30.44,124.53,124.49,11.04887098]
[1742276402087,30.44,124.53,124.48,29.8541734]
[1742276402890,38.4711,124.53,124.48,29.8541734]
[1742276403083,0.0524361,124.52,124.49,0.06095479]
[1742276403880,30.4324361,124.52,124.5,18.80530242]
[1742276404891,0.0524361,124.52,124.5,18.80530242]
[1742276405786,30.44,124.56,124.52,18.80530242]
[1742276406489,8.0299,124.55,124.52,18.80530242]
[1742276406691,30.44,124.54,124.52,18.80530242]
[1742276406887,38.4705,124.54,124.52,18.86298435]
[1742276407091,30.44,124.54,124.52,0.05768193]
[1742276407892,8.0308,124.53,124.52,0.05768193]
[1742276408290,8.0321,124.51,124.48,29.8541734]
[1742276408495,8.0321,124.51,124.49,278.79597502]
[1742276408496,30.46,124.51,124.49,278.79597502]
[1742276409184,38.4921,124.51,124.48,18.80530242]
[1742276409385,38.54560241,124.51,124.48,18.85725625]
[1742276412999,30.51350241,124.51,124.48,0.05195383]
[1742276413889,8.0334,124.49,124.48,0.05195383]
[1742276417702,8.0331,124.5,124.48,0.05195383]
[1742276418503,30.51350241,124.51,124.48,0.05195383]
[1742276419007,8.0334,124.49,124.48,0.05195383]
[1742276422108,14.8238645,124.5,124.48,0.05195383]
[1742276422512,0.05350241,124.51,124.48,12.09769885]
[1742276422809,0.05350241,124.51,124.5,12.04574502]
[1742276425806,30.56,124.52,124.5,20.07804502]
[1742276426408,30.54,124.54,124.51,8.032]
[1742276426711,30.54,124.54,124.52,12.04574502]
[1742276426912,30.5603915,124.54,124.52,12.04574502]
[1742276427413,30.5403915,124.54,124.52,20.07714502]
[1742276427912,0.0203915,124.54,124.52,20.07714502]
[1742276428112,0.0203915,124.54,124.53,8.0308]
[1742276430511,0.0203915,124.54,124.53,92.68096633]
[1742276430816,30.46,124.57,124.53,84.65016633]
[1742276431015,30.46,124.57,124.56,12.04574502]
[1742276432318,30.46,124.57,124.56,20.07464502]
[1742276433416,30.46,124.57,124.56,12.04574502]
[1742276433914,38.4882,124.57,124.55,56.00418113]
[1742276434219,30.46,124.57,124.55,56.00418113]
[1742276434617,30.46,124.57,124.56,8.0289]
[1742276435006,30.46,124.57,124.55,56.00418113]
[1742276435329,42.50574502,124.57,124.55,43.95843611]
[1742276436216,8.0289,124.56,124.55,43.95843611]
[1742276437415,8.0289,124.56,124.55,12.83823611]
[1742276438616,8.0308,124.53,124.52,23.02106394]
[1742276438816,38.5508,124.53,124.52,23.02106394]
[1742276439707,38.5508,124.53,124.52,10.97531892]
[1742276440615,8.0314,124.52,124.51,11.03720478]
[1742276441611,8.0314,124.52,124.51,4.78e-06]
[1742276441816,42.56574502,124.53,124.49,4.78e-06]
[1742276442519,8.0327,124.5,124.49,4.78e-06]
[1742276442708,38.5127,124.5,124.49,4.78e-06]
[1742276444722,8.0334,124.49,124.48,0.0580124]
[1742276450332,42.52574502,124.5,124.43,364.88255136]
[1742276450529,42.52574502,124.5,124.44,12.04574502]
[1742276451129,8.0359,124.45,124.44,12.04574502]
[1742276451930,8.0366,124.44,124.43,87.86247952]
[1742276452127,30.37472947,124.46,124.43,99.90822454]
[1742276453123,30.37472947,124.46,124.43,12.10567318]
[1742276453330,38.41032947,124.46,124.43,20.14287318]
[1742276453632,30.37472947,124.46,124.43,12.10567318]
[1742276453928,8.036,124.45,124.43,12.10567318]
[1742276454333,30.37472947,124.46,124.43,12.10567318]
[1742276456531,30.37472947,124.46,124.43,12.10567318]
[1742276457532,8.0365,124.45,124.43,0.05992816]
[1742276457735,30.37472947,124.46,124.43,0.05992816]
[1742276458130,38.41042947,124.46,124.43,0.05992816]
[1742276459236,8.036,124.45,124.43,0.05992816]
[1742276459735,38.41032947,124.46,124.43,0.05992816]
[1742276460036,38.41032947,124.46,124.43,8.09712816]
[1742276460535,8.036,124.45,124.43,8.09712816]
[1742276460730,30.37472947,124.46,124.43,0.05992816]
[1742276461236,8.0364,124.45,124.43,0.05992816]
[1742276461435,30.37472947,124.46,124.43,0.05992816]
[1742276463735,8.0366,124.44,124.43,0.05992816]
[1742276468941,8.0361,124.45,124.43,0.05992816]
[1742276469942,30.37472947,124.46,124.43,0.05992816]
[1742276470142,30.37472947,124.46,124.44,12.04574502]
[1742276470347,30.37472947,124.46,124.44,20.08174502]
[1742276471141,38.41012947,124.46,124.44,12.04574502]
[1742276471344,8.09012947,124.46,124.44,12.04574502]
[1742276471642,30.09472947,124.46,124.44,12.04574502]
[1742276471941,38.13052947,124.46,124.44,12.04574502]
[1742276472543,30.09472947,124.46,124.44,20.08224502]
[1742276473839,30.09472947,124.46,124.45,8.0359]
[1742276474043,0.05472947,124.46,124.45,8.0359]
[1742276475540,8.09002947,124.46,124.44,20.08204502]
[1742276475747,0.05472947,124.46,124.44,12.04574502]
[1742276476045,8.0366,124.44,124.43,0.05992816]
[1742276476750,8.0366,124.44,124.43,33.09977298]
[1742276477045,0.05472947,124.46,124.43,33.09977298]
[1742276477350,0.05472947,124.46,124.45,12.04574502]
[1742276478441,0.05472947,124.46,124.45,20.08164502]
[1742276479448,8.0335,124.49,124.47,8.0345]
[1742276479649,30.04,124.49,124.47,12.04574502]
[1742276480147,30.04,124.49,124.47,20.07994502]
[1742276480349,38.0737,124.49,124.46,12.04574502]
[1742276480844,38.12735408,124.49,124.46,12.10526219]
[1742276481648,38.12735408,124.49,124.46,20.14036219]
[1742276482746,8.0341,124.48,124.46,20.14036219]
[1742276483149,0.05365408,124.49,124.46,12.10526219]
[1742276483350,25.73732879,124.57,124.48,12.04574502]
[1742276483546,43.79158377,124.57,124.53,12.04574502]
[1742276484252,30.1,124.57,124.53,20.07624502]
[1742276484446,0.05445632,124.56,124.54,0.05630118]
[1742276484846,0.05445632,124.56,124.54,8.08640118]
[1742276489847,0.05445632,124.56,124.54,0.05630118]
[1742276490860,8.0295,124.55,124.54,0.05630118]
[1742276498870,20.06574502,124.55,124.45,398.08239618]
[1742276499071,12.04574502,124.51,124.46,12.04574502]
[1742276499375,8.0337,124.49,124.46,20.08084502]
[1742276499967,8.09271583,124.49,124.46,12.10360232]
[1742276500771,8.09271583,124.49,124.46,20.13850232]
[1742276503072,8.09271583,124.49,124.46,12.10360232]
[1742276503472,0.05901583,124.49,124.46,12.10360232]
[1742276504071,0.05901583,124.49,124.47,8.0343]
[1742276504872,8.09241583,124.49,124.47,8.0343]
[1742276506571,0.05901583,124.49,124.48,12.04574502]
[1742276506967,0.05901583,124.49,124.48,20.07974502]
[1742276516879,0.05901583,124.49,124.48,27.17802068]
[1742276518582,0.05901583,124.49,124.48,38.17860244]
[1742276519772,0.05901583,124.49,124.48,30.14460244]
[1742276520280,0.05901583,124.49,124.48,19.14402068]
[1742276520479,0.05901583,124.49,124.48,27.17802068]
[1742276521886,0.05901583,124.49,124.48,38.17860244]
[1742276522184,8.09241583,124.49,124.48,30.14460244]
[1742276523187,8.09241583,124.49,124.48,18.09885742]
[1742276524689,8.09241583,124.49,124.46,31.13918408]
[1742276524880,29.68,124.48,124.46,31.13918408]
[1742276525583,29.68,124.48,124.47,8.0347]
[1742276526078,29.68,124.48,124.46,23.10418408]
[1742276526881,29.68,124.48,124.47,15.04916063]
[1742276527088,0.05901583,124.49,124.47,7.01446063]
[1742276527285,0.05901583,124.49,124.48,12.04574502]
[1742276527486,0.05901583,124.49,124.48,20.07974502]
[1742276529882,0.05901583,124.49,124.48,71.13463223]
[1742276531982,0.05901583,124.49,124.48,145.22592642]
[1742276533388,29.56,124.52,124.51,8.0321]
[1742276533590,8.0303,124.54,124.5,12.04574502]
[1742276533785,29.54,124.53,124.5,12.04574502]
[1742276533986,29.54,124.53,124.51,8.0317]
[1742276534386,29.59659591,124.53,124.51,0.05192444]
[1742276535289,29.57659591,124.53,124.51,8.08372444]
[1742276535488,29.57659591,124.53,124.51,0.05192444]
[1742276535884,0.05659591,124.53,124.52,20.07714502]
[1742276536883,0.05659591,124.53,124.52,27.09160565]
[1742276539389,41.62234093,124.53,124.51,44.39459845]
[1742276539584,49.66234093,124.53,124.51,31.17639845]
[1742276539894,49.66234093,124.53,124.52,8.0169119]
[1742276540093,49.66234093,124.53,124.5,162.03299645]
[1742276540289,12.04574502,124.51,124.5,162.03299645]
[1742276540488,20.07784502,124.51,124.5,162.03299645]
[1742276541789,20.07784502,124.51,124.5,131.11649645]
[1742276541993,20.07784502,124.51,124.5,88.49069645]
[1742276542196,20.07784502,124.51,124.5,74.64179645]
[1742276543087,8.0327,124.5,124.49,0.05803922]
[1742276543390,37.6927,124.5,124.49,0.05803922]
[1742276544096,57.77844502,124.5,124.49,3.922e-05]
[1742276544295,8.036,124.45,124.42,16.26314502]
[1742276544488,29.7,124.44,124.42,16.26314502]
[1742276544689,29.7,124.45,124.44,6.02287251]
[1742276545589,0.06116566,124.46,124.44,6.02287251]
[1742276545791,0.06116566,124.46,124.45,6.02287251]
[1742276546793,0.06116566,124.46,124.44,6.02287251]
[1742276546994,0.06116566,124.46,124.43,12.10696238]
[1742276547397,8.0363,124.45,124.43,12.10696238]
[1742276548198,37.7766,124.44,124.43,0.06121736]
[1742276548891,29.74,124.44,124.43,0.06121736]
[1742276549699,37.7766,124.44,124.43,0.06121736]
[1742276556097,29.74,124.44,124.43,0.06121736]
[1742276556397,0.06116566,124.46,124.43,0.06121736]
[1742276556598,29.70116566,124.46,124.43,0.06121736]
[1742276556801,29.70116566,124.46,124.44,8.0362]
[1742276557903,29.70116566,124.46,124.43,0.06121736]